bitfinex-derivatives/quotes_SOLF0:USTF0_20241105
["timestamp","ask_amount","ask_price","bid_price","bid_amount"]
[1730777851673,9.67578519,159.01,158.95,9.67578519]
[1730777852182,3.1468,159.0,158.95,12.82328519]
[1730777852363,3.1468,159.0,158.95,9.67578519]
[1730777852764,3.1468,159.0,158.96,3.1473]
[1730777856777,3.1469,158.99,158.95,12.82338519]
[1730777857379,9.67578519,159.01,158.96,3.1473]
[1730777857587,9.67578519,159.0,158.96,3.1473]
[1730777858396,3.1469,158.99,158.96,3.1473]
[1730777858687,3.1469,158.99,158.95,9.67578519]
[1730777858981,3.1469,158.99,158.95,12.82338519]
[1730777859181,9.67578519,159.0,158.95,12.82338519]
[1730777859378,9.67578519,159.0,158.95,9.67578519]
[1730777860180,3.1471,158.98,158.95,12.82338519]
[1730777860384,9.67578519,159.0,158.95,12.82338519]
[1730777860580,3.1467,159.0,158.97,3.1472]
[1730777860783,9.67578519,159.03,158.97,9.67578519]
[1730777861284,3.1466,159.01,158.97,12.82298519]
[1730777861472,9.67578519,159.01,158.97,12.82298519]
[1730777862282,3.1467,159.0,158.97,12.82298519]
[1730777862684,3.1467,159.0,158.97,3.1472]
[1730777866577,12.82228519,159.01,158.98,3.147]
[1730777866777,3.1465,159.01,158.98,3.147]
[1730777871588,3.147,158.99,158.96,12.82308519]
[1730777875787,13.94,158.98,158.78,6.12455148]
[1730777875989,13.94,158.98,158.84,9.67578519]
[1730777875990,9.67578519,158.9,158.84,9.67578519]
[1730777876388,3.1494,158.87,158.82,12.82588519]
[1730777876586,9.67578519,158.89,158.82,12.82588519]
[1730777877089,3.1495,158.86,158.82,9.67578519]
[1730777877281,9.67578519,158.87,158.8,15.25178519]
[1730777877685,3.1497,158.85,158.8,18.40228519]
[1730777878087,9.67578519,158.87,158.8,15.25178519]
[1730777878390,2.94,158.89,158.82,9.67578519]
[1730777878391,12.61578519,158.89,158.82,9.67578519]
[1730777879295,3.1493,158.87,158.83,3.15]
[1730777879996,3.1493,158.87,158.82,12.82598519]
[1730777880199,9.67578519,158.87,158.82,12.82598519]
[1730777880397,3.1495,158.86,158.82,12.82598519]
[1730777880598,9.67578519,158.86,158.8,15.25178519]
[1730777881396,9.67578519,158.86,158.8,18.40218519]
[1730777882594,9.67578519,158.87,158.8,18.40218519]
[1730777883391,3.1499,158.84,158.8,18.40218519]
[1730777884397,3.1494,158.87,158.83,3.1499]
[1730777884597,3.1494,158.87,158.83,12.82568519]
[1730777885103,2.94,158.89,158.83,9.67578519]
[1730777886195,3.1493,158.87,158.83,12.82568519]
[1730777886392,3.1493,158.87,158.83,9.67578519]
[1730777886592,12.61578519,158.89,158.82,9.67578519]
[1730777886798,3.1496,158.86,158.82,12.82578519]
[1730777887292,3.1497,158.85,158.82,12.82578519]
[1730777887593,3.1497,158.85,158.82,3.15]
[1730777888407,3.1497,158.85,158.82,12.82578519]
[1730777888602,3.1495,158.86,158.82,12.82578519]
[1730777896002,12.82498519,158.88,158.84,3.1496]
[1730777896206,9.67578519,158.9,158.83,9.67578519]
[1730777896606,3.1492,158.88,158.84,3.1497]
[1730777898104,9.67578519,158.9,158.83,9.67578519]
[1730777898303,3.1491,158.88,158.85,3.1495]
[1730777899108,12.82488519,158.88,158.85,3.1495]
[1730777899310,12.82488519,158.88,158.84,3.1497]
[1730777899311,3.1493,158.87,158.84,3.1497]
[1730777900216,12.82488519,158.88,158.84,3.1497]
[1730777901510,12.82478519,158.89,158.85,3.1495]
[1730777901810,12.82478519,158.89,158.85,9.67578519]
[1730777902110,12.82478519,158.89,158.86,3.1493]
[1730777902615,3.149,158.88,158.85,12.82528519]
[1730777902913,12.61578519,158.91,158.85,9.67578519]
[1730777903819,3.1489,158.89,158.86,3.1493]
[1730777904305,12.82468519,158.89,158.86,3.1493]
[1730777905113,12.82468519,158.89,158.86,3.1494]
[1730777906808,3.1481,158.93,158.9,3.1486]
[1730777907016,9.67578519,158.95,158.91,9.67578519]
[1730777907320,9.67578519,158.96,158.91,9.67578519]
[1730777907505,3.1478,158.95,158.92,3.148]
[1730777907708,3.1478,158.95,158.91,9.67578519]
[1730777907709,9.67578519,158.96,158.91,9.67578519]
[1730777907911,9.67578519,158.97,158.92,9.67578519]
[1730777908111,3.1476,158.96,158.91,12.82418519]
[1730777908315,3.1476,158.96,158.91,9.67578519]
[1730777908812,3.1476,158.96,158.92,3.1481]
[1730777909717,12.82318519,158.97,158.93,3.1479]
[1730777909917,9.67578519,158.97,158.93,3.1479]
[1730777911019,3.06,158.98,158.91,12.82408519]
[1730777911020,3.1477,158.95,158.91,12.82408519]
[1730777911517,3.1477,158.95,158.91,3.1483]
[1730777911911,9.67578519,158.94,158.89,3.06]
[1730777912219,9.67578519,158.91,158.86,13.84628519]
[1730777912517,9.67578519,158.91,158.86,15.49688519]
[1730777912906,3.1489,158.89,158.86,15.49688519]
[1730777913108,9.67578519,158.91,158.86,5.8211]
[1730777914213,3.1489,158.89,158.86,8.9705]
[1730777915724,3.1486,158.9,158.87,3.1492]
[1730777915922,9.67578519,158.91,158.87,3.1492]
[1730777916213,9.67578519,158.91,158.86,15.49688519]
[1730777916422,9.67578519,158.91,158.87,3.1492]
[1730777917218,3.1486,158.9,158.87,3.1492]
[1730777917418,3.1486,158.9,158.86,5.9105]
[1730777917622,9.67578519,158.9,158.86,3.1494]
[1730777917919,9.67578519,158.9,158.84,9.67578519]
[1730777918118,9.67578519,158.88,158.84,3.06]
[1730777918423,3.1494,158.87,158.84,6.2097]
[1730777918623,9.67578519,158.88,158.84,6.2097]
[1730777918931,9.67578519,158.9,158.84,12.73578519]
[1730777919221,3.149,158.89,158.86,3.1493]
[1730777919719,9.67578519,158.92,158.86,9.67578519]
[1730777919916,3.1486,158.91,158.87,3.1491]
[1730777920123,3.1486,158.91,158.86,9.67578519]
[1730777920715,4.4561,158.95,158.89,9.67578519]
[1730777920716,9.67578519,158.95,158.89,9.67578519]
[1730777920911,1.327,158.99,158.91,9.67578519]
[1730777920912,9.67578519,158.96,158.91,9.67578519]
[1730777921519,9.67578519,158.96,158.92,3.1482]
[1730777922318,3.1477,158.95,158.92,3.1482]
[1730777925222,3.1473,158.97,158.93,3.148]
[1730777925416,3.1473,158.97,158.92,15.1222573]
[1730777925726,18.1822573,159.02,158.92,18.1822573]
[1730777926019,4.0641,159.03,158.95,15.1222573]
[1730777926020,1.3626,159.03,158.95,15.1222573]
[1730777926227,3.06,159.04,158.96,3.06]
[1730777926423,3.1464,159.02,158.98,3.1469]
[1730777927021,3.06,159.04,158.99,3.1468]
[1730777927022,3.1461,159.03,158.99,3.1468]
[1730777927219,3.06,159.04,158.99,3.1468]
[1730777927819,3.06,159.06,158.99,3.1468]
[1730777928324,3.1461,159.03,158.99,3.1468]
[1730777929720,3.1463,159.02,158.99,3.1468]
[1730777931029,3.1461,159.03,158.99,3.1468]
[1730777935127,19.5260573,159.07,158.97,15.1222573]
[1730777935327,3.1466,159.01,158.97,6.1671]
[1730777936331,15.1222573,159.05,158.98,3.1469]
[1730777937737,19.5260573,159.07,158.97,18.1422573]
[1730777938929,3.1462,159.03,158.99,3.1467]
[1730777939535,3.1466,159.01,158.98,3.147]
[1730777940739,3.1461,159.03,159.0,3.1465]
[1730777941445,3.146,159.04,159.0,3.1465]
[1730777941848,19.5260573,159.07,159.0,3.1465]
[1730777942143,3.146,159.04,159.0,3.1465]
[1730777943339,3.146,159.04,159.01,9.66654613]
[1730777944142,3.146,159.04,159.01,12.81294613]
[1730777944541,9.66654613,159.05,158.99,9.66654613]
[1730777944746,9.66654613,159.05,158.97,3.02]
[1730777944747,9.66654613,159.03,158.98,9.66654613]
[1730777945436,3.1464,159.02,158.99,3.1467]
[1730777946446,3.1464,159.02,158.98,9.66654613]
[1730777946650,9.66654613,159.03,158.98,9.66654613]
[1730777948250,3.1466,159.01,158.98,12.81344613]
[1730777948849,3.1464,159.02,158.98,12.81344613]
[1730777952156,9.66654613,159.02,158.98,9.66654613]
[1730777952352,9.66654613,159.02,158.96,12.81394613]
[1730777952754,3.1468,159.0,158.96,12.81394613]
[1730777953159,3.1468,159.0,158.96,9.66654613]
[1730777953363,3.1468,159.0,158.97,3.1472]
[1730777956462,3.1463,159.02,158.99,3.1467]
[1730777958952,3.1465,159.01,158.98,3.147]
[1730777959552,9.66654613,159.02,158.99,3.1468]
[1730777959553,3.1463,159.02,158.99,3.1468]
[1730777965665,3.146,159.04,159.0,3.1465]
[1730777965866,3.146,159.04,158.99,9.66654613]
[1730777966168,3.146,159.04,159.0,3.1466]
[1730777966571,3.1461,159.03,159.0,3.1466]
[1730777970466,9.66654613,159.04,158.98,9.66654613]
[1730777970666,3.1463,159.02,158.99,3.1468]
[1730777972171,9.66654613,159.04,158.98,9.66654613]
[1730777972372,3.1465,159.01,158.98,12.81354613]
[1730777975370,3.1465,159.01,158.98,9.66654613]
[1730777975575,3.1465,159.01,158.99,3.1468]
[1730777977675,3.1463,159.02,158.99,12.81334613]
[1730777977870,9.66654613,159.05,159.0,9.66654613]
[1730777978268,3.1463,159.02,159.0,9.66654613]
[1730777983281,3.1463,159.02,158.99,12.81334613]
[1730777984073,3.1461,159.03,158.99,12.81334613]
[1730777986474,3.146,159.04,159.0,3.1465]
[1730777988686,3.1461,159.03,159.0,3.1465]
[1730777996390,9.66654613,159.05,158.99,9.66654613]
[1730777996690,9.66654613,159.02,158.96,9.66654613]
[1730777997197,3.1468,159.0,158.96,9.66654613]
[1730777997384,9.66654613,159.02,158.96,9.66654613]
[1730777997687,3.147,158.99,158.96,9.66654613]
[1730777998393,3.147,158.99,158.96,12.81384613]
[1730777998892,9.66654613,159.02,158.96,9.66654613]
[1730777999203,12.58654613,159.05,158.98,9.66654613]
[1730777999493,3.1462,159.03,158.98,9.66654613]
[1730777999685,3.1462,159.03,158.99,3.1467]
[1730777999886,12.58654613,159.05,158.98,9.66654613]
[1730778000193,12.58654613,159.05,159.0,3.1466]
[1730778000995,3.146,159.04,159.0,3.1466]
[1730778001497,12.58654613,159.05,159.0,3.1466]
[1730778002299,12.58654613,159.05,159.01,3.1463]
[1730778003191,15.73234613,159.05,159.01,3.1463]
[1730778003797,12.58654613,159.05,159.0,9.66654613]
[1730778003999,3.1461,159.03,158.99,3.1467]
[1730778004196,3.1461,159.03,158.98,12.58654613]
[1730778004601,12.58654613,159.05,159.0,3.1465]
[1730778004796,9.66654613,159.06,159.0,9.66654613]
[1730778005096,1.3838,159.07,159.01,9.66654613]
[1730778005299,1.3838,159.07,159.02,3.1461]
[1730778005506,3.1457,159.05,159.02,3.1461]
[1730778008099,9.66654613,159.06,159.0,9.66654613]
[1730778008295,12.81264613,159.03,159.0,3.1465]
[1730778008704,9.66654613,159.03,158.98,12.58654613]
[1730778008911,3.1463,159.02,158.99,3.1467]
[1730778009317,9.66654613,159.03,158.98,12.58654613]
[1730778009513,12.81264613,159.03,159.0,3.1466]
[1730778011612,12.81274613,159.03,158.99,3.1468]
[1730778012119,9.66654613,159.03,158.99,3.1468]
[1730778012422,3.1467,159.0,158.97,15.73374613]
[1730778012718,3.1467,159.0,158.97,3.1472]
[1730778013111,9.66654613,159.02,158.97,3.1472]
[1730778013321,9.66654613,159.02,158.98,3.147]
[1730778013322,3.1465,159.01,158.98,3.147]
[1730778016617,9.66654613,159.02,158.97,9.66654613]
[1730778016823,3.1461,159.03,158.94,5.6603]
[1730778016824,3.1461,159.03,158.99,9.66654613]
[1730778018227,3.1461,159.03,159.0,3.1465]
[1730778022229,12.58654613,159.04,158.99,9.66654613]
[1730778024225,3.1461,159.03,159.0,3.1466]
[1730778025223,9.66654613,159.02,158.99,3.1467]
[1730778026335,9.66654613,159.0,158.96,3.1473]
[1730778026929,12.81334613,159.0,158.96,3.1473]
[1730778028638,9.66654613,159.02,158.97,9.66654613]
[1730778028835,12.58654613,159.04,158.98,9.66654613]
[1730778029031,3.1462,159.03,158.99,3.1467]
[1730778029228,12.58654613,159.04,158.98,9.66654613]
[1730778029737,3.1462,159.03,158.99,3.1468]
[1730778029931,9.66654613,159.02,158.99,3.1468]
[1730778032540,9.66654613,159.03,158.98,9.66654613]
[1730778033842,12.81274613,159.03,158.98,9.66654613]
[1730778034043,9.66654613,159.03,158.98,9.66654613]
[1730778034638,9.66654613,159.03,159.0,3.1465]
[1730778036747,9.66654613,159.03,159.01,3.1464]
[1730778040951,12.81264613,159.03,159.0,3.1466]
[1730778041448,9.66654613,159.03,158.98,12.58654613]
[1730778041651,3.1464,159.02,158.99,3.1468]
[1730778042151,9.66654613,159.03,158.98,12.58654613]
[1730778042536,9.66654613,159.06,159.0,9.66654613]
[1730778043445,12.81214613,159.06,159.01,3.1463]
[1730778043647,12.81214613,159.06,159.0,9.66654613]
[1730778044046,12.81214613,159.06,159.02,3.1461]
[1730778044651,12.81214613,159.06,159.01,3.1463]
[1730778044850,12.81214613,159.06,159.0,9.66654613]
[1730778046149,12.81214613,159.06,159.02,3.1462]
[1730778048645,12.81214613,159.06,159.03,3.146]
[1730778051957,12.81214613,159.06,159.0,9.66654613]
[1730778052345,9.66654613,159.06,159.0,9.66654613]
[1730778052551,39.55969029,159.09,159.03,9.66654613]
[1730778052751,39.55969029,159.09,159.03,12.58654613]
[1730778053152,42.70459029,159.09,159.03,12.58654613]
[1730778053655,42.70459029,159.09,159.05,3.1455]
[1730778056356,9.66654613,159.07,159.04,3.1458]
[1730778056658,9.66654613,159.07,159.03,2.92]
[1730778057455,12.81194613,159.07,159.04,3.1457]
[1730778060760,3.1458,159.05,159.02,12.81274613]
[1730778060955,29.89314416,159.09,159.04,9.66654613]
[1730778061156,10.98894613,159.11,159.05,9.66654613]
[1730778061361,3.1447,159.1,159.07,3.1451]
[1730778061965,9.66654613,159.11,159.07,3.1451]
[1730778062260,12.81114613,159.11,159.07,3.1451]
[1730778063462,3.1447,159.1,159.07,3.1451]
[1730778063662,9.66654613,159.13,159.07,9.66654613]
[1730778064959,12.81074613,159.13,159.09,3.1448]
[1730778066167,9.66654613,159.14,159.08,9.66654613]
[1730778066361,3.1444,159.12,159.09,3.1448]
[1730778069768,3.1445,159.11,159.08,3.145]
[1730778069972,9.66654613,159.12,159.08,3.145]
[1730778070165,9.66654613,159.12,159.07,9.66654613]
[1730778070668,49.87173038,159.31,159.11,9.66654613]
[1730778070867,9.66654613,159.25,159.2,9.66654613]
[1730778071565,9.66654613,159.25,159.2,12.80914613]
[1730778071964,12.80834613,159.25,159.2,12.80914613]
[1730778072162,12.80834613,159.25,159.22,9.66654613]
[1730778072163,3.1418,159.25,159.22,9.66654613]
[1730778072370,9.66654613,159.27,159.22,9.66654613]
[1730778072572,4.21601861,159.26,159.22,9.66654613]
[1730778072775,3.1417,159.26,159.22,9.66654613]
[1730778075864,9.66654613,159.31,159.25,9.66654613]
[1730778076172,0.28443,159.34,159.28,9.66654613]
[1730778076173,9.66654613,159.32,159.28,9.66654613]
[1730778076376,9.95097613,159.34,159.28,9.66654613]
[1730778076567,1.07400905,159.33,159.28,9.66654613]
[1730778077071,9.95097613,159.34,159.28,9.66654613]
[1730778077276,0.28443,159.34,159.31,9.66654613]
[1730778077676,3.42453,159.34,159.3,9.66654613]
[1730778077974,9.95097613,159.34,159.28,9.66654613]
[1730778078168,0.28443,159.34,159.31,9.66654613]
[1730778078361,0.28443,159.34,159.33,9.66654613]
[1730778078794,0.28443,159.34,159.31,12.58654613]
[1730778079770,0.28443,159.34,159.3,9.66654613]
[1730778079970,9.95097613,159.34,159.29,9.66654613]
[1730778080364,9.95097613,159.34,159.27,2.6542]
[1730778080365,9.66654613,159.31,159.27,12.58654613]
[1730778080674,9.66654613,159.31,159.25,12.60654613]
[1730778081176,3.1409,159.3,159.25,15.74804613]
[1730778081976,12.80764613,159.29,159.24,12.80844613]
[1730778082270,9.66654613,159.29,159.24,12.60654613]
[1730778082675,3.1413,159.28,159.24,12.60654613]
[1730778083274,12.80754613,159.29,159.24,15.74834613]
[1730778083876,12.80754613,159.29,159.18,1.3001]
[1730778083877,3.1414,159.27,159.23,9.66654613]
[1730778084467,9.66654613,159.28,159.23,9.66654613]
[1730778084777,9.66654613,159.28,159.21,15.74904613]
[1730778085174,9.66654613,159.28,159.21,12.60654613]
[1730778085175,3.1415,159.26,159.21,12.60654613]
[1730778085578,3.1415,159.26,159.22,3.1421]
[1730778085779,3.1418,159.25,159.21,9.66654613]
[1730778086185,3.1418,159.25,159.21,12.80884613]
[1730778086474,3.1418,159.25,159.21,9.66654613]
[1730778087179,3.1421,159.24,159.21,9.66654613]
[1730778087386,9.66654613,159.27,159.21,9.66654613]
[1730778088676,9.66654613,159.27,159.22,3.1423]
[1730778089077,9.66654613,159.27,159.21,9.66654613]
[1730778089384,9.66654613,159.27,159.21,12.80904613]
[1730778090075,3.1419,159.25,159.21,12.80904613]
[1730778091481,3.1419,159.25,159.21,3.1425]
[1730778091780,3.1416,159.26,159.21,3.1425]
[1730778092183,9.66654613,159.25,159.21,3.1425]
[1730778092575,12.80834613,159.25,159.21,3.1425]
[1730778092880,9.66654613,159.25,159.2,12.60654613]
[1730778093280,2.94,159.31,159.21,9.66654613]
[1730778093281,9.66654613,159.27,159.21,9.66654613]
[1730778093482,9.66654613,159.27,159.22,3.1421]
[1730778093781,3.1416,159.26,159.22,3.1421]
[1730778094488,9.66654613,159.26,159.22,3.1421]
[1730778094982,9.66654613,159.26,159.21,3.1424]
[1730778094983,3.1417,159.25,159.21,3.1424]
[1730778095685,3.1417,159.25,159.2,9.66654613]
[1730778095686,3.1417,159.25,159.2,12.60654613]
[1730778095875,3.1417,159.25,159.22,3.1423]
[1730778096779,9.66654613,159.26,159.2,12.60654613]
[1730778098084,3.1418,159.25,159.21,3.1423]
[1730778099585,3.1418,159.25,159.22,3.1423]
[1730778101385,3.1418,159.25,159.2,12.60654613]
[1730778101585,9.66654613,159.26,159.2,9.66654613]
[1730778101784,9.66654613,159.24,159.19,9.66654613]
[1730778102086,9.66654613,159.24,159.17,5.6134]
[1730778102087,9.66654613,159.23,159.17,12.33994613]
[1730778102283,9.66654613,159.23,159.17,15.27994613]
[1730778102893,3.1424,159.22,159.19,3.1428]
[1730778103288,9.66654613,159.23,159.19,3.1428]
[1730778103590,3.1422,159.23,159.19,3.1428]
[1730778106186,12.80874613,159.23,159.19,3.1428]
[1730778106388,9.66654613,159.23,159.18,9.66654613]
[1730778106587,12.80874613,159.23,159.2,3.1427]
[1730778106792,12.80874613,159.23,159.18,9.66654613]
[1730778107189,12.80874613,159.23,159.19,3.1427]
[1730778109984,9.66654613,159.24,159.18,9.66654613]
[1730778110185,9.66654613,159.24,159.21,3.1423]
[1730778111393,12.80844613,159.24,159.21,3.1423]
[1730778113489,9.66654613,159.23,159.17,5.6134]
[1730778113690,3.1425,159.21,159.18,3.1431]
[1730778114188,3.1426,159.21,159.18,3.143]
[1730778114597,9.66654613,159.23,159.18,9.66654613]
[1730778116490,3.1423,159.22,159.19,3.1428]
[1730778117887,9.66654613,159.23,159.19,3.1428]
[1730778118088,12.80874613,159.23,159.19,3.1428]
[1730778119190,3.1423,159.22,159.19,3.1428]
[1730778121297,9.66654613,159.23,159.18,9.66654613]
[1730778121496,12.80904613,159.21,159.17,8.7565]
[1730778121803,9.66654613,159.21,159.17,8.7565]
[1730778122097,9.66654613,159.21,159.16,9.66654613]
[1730778122098,9.66654613,159.21,159.16,3.1434]
[1730778122402,9.66654613,159.21,159.15,9.66654613]
[1730778122403,9.66654613,159.18,159.13,5.7319]
[1730778122591,9.66654613,159.18,159.13,2.8119]
[1730778122788,9.66654613,159.18,159.13,1.4218]
[1730778123296,3.1436,159.16,159.13,1.4218]
[1730778123492,9.66654613,159.17,159.13,1.4218]
[1730778124399,3.1437,159.16,159.13,1.4218]
[1730778124701,9.66654613,159.17,159.13,1.4218]
[1730778124998,2.92,159.23,159.11,2.92]
[1730778124999,9.66654613,159.15,159.11,2.92]
[1730778125298,9.66654613,159.15,159.1,12.81124613]
[1730778125603,9.66654613,159.15,159.09,12.58654613]
[1730778125994,12.58654613,159.19,159.13,9.66654613]
[1730778126398,2.92,159.19,159.14,9.66654613]
[1730778127096,3.1431,159.18,159.14,12.81034613]
[1730778127300,1.3835,159.25,159.16,9.66654613]
[1730778127301,9.66654613,159.21,159.16,9.66654613]
[1730778127603,9.66654613,159.21,159.17,3.1433]
[1730778127801,9.66654613,159.21,159.16,9.66654613]
[1730778128000,9.66654613,159.23,159.18,9.66654613]
[1730778128996,12.80864613,159.23,159.19,3.1427]
[1730778130500,3.1423,159.22,159.18,9.66654613]
[1730778130702,9.66654613,159.23,159.18,9.66654613]
[1730778131302,3.1423,159.22,159.18,12.80954613]
[1730778134503,9.66654613,159.19,159.13,9.66654613]
[1730778134704,12.80974613,159.18,159.14,3.1439]
[1730778135100,12.80954613,159.19,159.15,3.1437]
[1730778135308,9.66654613,159.2,159.15,9.66654613]
[1730778135705,9.66654613,159.22,159.17,3.1432]
[1730778136102,9.66654613,159.2,159.17,3.1432]
[1730778138312,12.80934613,159.2,159.17,3.1432]
[1730778139808,12.80934613,159.2,159.15,9.66654613]
[1730778140006,12.80934613,159.2,159.16,3.1434]
[1730778142220,3.1432,159.18,159.14,12.81024613]
[1730778142608,9.66654613,159.19,159.14,12.81024613]
[1730778142809,3.1433,159.17,159.14,12.81024613]
[1730778143215,3.1433,159.17,159.14,3.1437]
[1730778143414,3.143,159.19,159.16,3.1435]
[1730778143818,3.143,159.19,159.15,9.66654613]
[1730778143819,9.66654613,159.21,159.15,9.66654613]
[1730778144213,9.66654613,159.21,159.17,9.66654613]
[1730778144415,9.66654613,159.23,159.17,12.58654613]
[1730778144621,9.66654613,159.24,159.18,9.66654613]
[1730778144919,3.1423,159.23,159.2,3.1426]
[1730778145722,3.1423,159.23,159.19,3.1428]
[1730778146817,3.1423,159.22,159.19,3.1428]
[1730778150420,15.08689749,159.24,159.17,8.708]
[1730778150622,15.08689749,159.24,159.17,5.5648]
[1730778151414,15.08689749,159.24,159.17,2.92]
[1730778152024,3.1426,159.21,159.17,6.0631]
[1730778152827,15.08689749,159.24,159.17,6.0631]
[1730778153029,3.1427,159.2,159.17,6.0631]
[1730778153428,15.08689749,159.22,159.12,15.08689749]
[1730778153634,15.08689749,159.2,159.15,6.0636]
[1730778153823,15.08689749,159.2,159.15,3.1436]
[1730778155228,3.1432,159.18,159.15,3.1436]
[1730778160525,3.1436,159.16,159.13,2.92]
[1730778160726,3.1436,159.16,159.11,2.7157]
[1730778160919,3.1436,159.16,159.12,2.92]
[1730778161127,3.1436,159.16,159.13,3.1441]
[1730778162023,3.1438,159.15,159.12,6.0642]
[1730778163026,15.08689749,159.18,159.12,6.0642]
[1730778163227,3.1436,159.16,159.12,6.0642]
[1730778163826,15.08689749,159.18,159.12,2.92]
[1730778164029,15.08689749,159.18,159.12,6.0642]
[1730778164534,3.1436,159.16,159.12,6.0642]
[1730778165430,12.8094177,159.16,159.12,6.0642]
[1730778166526,3.1437,159.15,159.12,6.0642]
[1730778166927,3.1437,159.15,159.12,3.1442]
[1730778169726,3.1442,159.13,159.1,3.1445]
[1730778170027,3.1442,159.13,159.1,6.0645]
[1730778170437,9.6658177,159.11,159.06,13.7661177]
[1730778170636,12.8104177,159.11,159.08,3.145]
[1730778170839,9.6658177,159.11,159.07,2.92]
[1730778171646,9.6658177,159.11,159.08,3.145]
[1730778173534,9.6658177,159.11,159.06,13.7661177]
[1730778173730,12.8107177,159.1,159.07,6.0652]
[1730778175933,12.8110177,159.08,159.05,3.1455]
[1730778176342,9.6658177,159.08,159.04,2.92]
[1730778177244,3.1454,159.07,159.04,6.0657]
[1730778177541,9.6658177,159.08,159.04,2.92]
[1730778177942,9.6658177,159.08,159.06,3.1453]
[1730778178638,9.6658177,159.08,159.04,2.92]
[1730778179445,9.6658177,159.08,159.06,3.1455]
[1730778180038,9.6658177,159.08,159.04,2.92]
[1730778180039,12.8110177,159.08,159.05,3.1455]
[1730778180534,9.6658177,159.08,159.04,2.92]
[1730778180738,9.6658177,159.08,159.05,3.1456]
[1730778182435,9.6658177,159.08,159.06,3.1454]
[1730778183239,12.8106177,159.1,159.07,3.1453]
[1730778183437,9.6658177,159.13,159.09,9.6658177]
[1730778184041,12.8099177,159.13,159.1,3.1445]
[1730778187235,9.6658177,159.13,159.11,3.1443]
[1730778187635,9.6658177,159.12,159.06,9.6658177]
[1730778187851,12.8102177,159.12,159.06,12.5858177]
[1730778188444,9.6658177,159.07,159.04,2.92]
[1730778189943,9.6658177,159.07,159.05,3.1456]
[1730778190140,9.6658177,159.07,159.04,2.92]
[1730778190537,9.6658177,159.07,159.04,6.0658]
[1730778193247,3.1456,159.06,159.04,2.92]
[1730778193453,9.6658177,159.05,159.0,1.3132]
[1730778193752,9.6658177,159.05,159.01,2.92]
[1730778194152,12.8115177,159.05,159.02,3.1461]
[1730778194745,3.146,159.04,159.01,6.0664]
[1730778195052,9.6658177,159.05,159.01,2.92]
[1730778195645,12.8115177,159.05,159.02,3.1462]
[1730778197155,9.6658177,159.05,159.01,2.92]
[1730778197455,2.92,159.09,159.01,12.5858177]
[1730778197456,9.6658177,159.07,159.01,12.5858177]
[1730778198148,9.6658177,159.08,159.02,9.6658177]
[1730778198345,9.6658177,159.1,159.04,9.6658177]
[1730778198551,9.6658177,159.1,159.05,2.92]
[1730778198751,9.6658177,159.11,159.06,9.6658177]
[1730778200259,12.8103177,159.11,159.08,3.1449]
[1730778200855,9.6658177,159.1,159.08,3.1449]
[1730778209552,9.6658177,159.1,159.05,2.92]
[1730778209760,12.8108177,159.09,159.06,3.1453]
[1730778215965,3.145,159.09,159.06,3.1453]
[1730778216362,12.8106177,159.1,159.07,3.1452]
[1730778221668,9.6658177,159.16,159.09,9.6658177]
[1730778221866,9.6658177,159.16,159.11,9.6658177]
[1730778222470,12.8097177,159.15,159.11,3.1444]
[1730778225277,3.1442,159.13,159.1,6.0646]
[1730778225472,12.8100177,159.13,159.1,6.0646]
[1730778226682,9.6658177,159.13,159.1,2.92]
[1730778226882,3.1444,159.12,159.1,2.92]
[1730778228274,9.6658177,159.15,159.1,2.92]
[1730778228469,3.1441,159.13,159.1,6.0646]
[1730778244279,3.1444,159.12,159.1,2.92]
[1730778245493,3.1444,159.12,159.09,12.8107177]
[1730778250892,3.1446,159.11,159.09,9.6658177]
[1730778254492,3.1446,159.11,159.09,12.8106177]
[1730778256093,3.1442,159.13,159.1,3.1447]
[1730778256399,3.1442,159.13,159.11,9.6658177]
[1730778256896,13.9209177,159.18,159.12,3.1442]
[1730778257294,13.9209177,159.18,159.13,9.6658177]
[1730778257596,3.1433,159.18,159.14,12.8097177]
[1730778258391,3.1433,159.17,159.14,12.8097177]
[1730778258992,3.1433,159.17,159.14,9.6658177]
[1730778261096,3.1435,159.16,159.13,3.1439]